fUSD/lending_fUSD_20251227
["ID","MTS","AMOUNT","RATE_DAILY","PERIOD"]
[399899318,1766832644970,-211.79,0.00023281,2]
[399899319,1766832644979,-152.40600789,0.0002336,2]
[399899320,1766832644988,-914.61,0.00023551,2]
[399899321,1766832644998,-151.06982274,0.00023636,2]
[399899322,1766832645008,-597.06,0.00023824,2]
[399899323,1766832645017,-334.5472959,0.00023824,2]
[399899324,1766832645027,-914.61,0.00023825,2]
[399899325,1766832645036,-16645.09979087,0.00024,2]
[399899326,1766832645045,-1018.1226645,0.00024,2]
[399899327,1766832645054,-3600.0,0.00024,2]
[399899328,1766832645063,-318.20343151,0.00024,2]
[399899329,1766832645072,-914.61,0.00024099,2]
[399899330,1766832645082,-1024.39836439,0.0002425,2]
[399899331,1766832645091,-7240.73941846,0.00024261,2]
[399899332,1766832645100,-150.0,0.00024263,2]
[399899333,1766832645110,-6537.0,0.00024263,2]
[399899334,1766832645119,-211.79,0.00024293,2]
[399899335,1766832645128,-914.61,0.00024373,2]
[399899336,1766832645137,-914.61,0.00024647,2]
[399899337,1766832645146,-1000.0,0.00024658,2]
[399899338,1766832645155,-976.0,0.000247,2]
[399899339,1766832645164,-305.0,0.000247,2]
[399899340,1766832645174,-849.0,0.000247,2]
[399899341,1766832645183,-151.0,0.000248,7]
[399899342,1766832645193,-153.414654,0.000248,7]
[399899343,1766832645202,-11511.34934764,0.000248,3]
[399899344,1766832645759,-150.0,0.00024263,2]
[399899345,1766832645770,-906.62722999,0.000248,3]
[399899353,1766832698519,-500.0,0.00012648,2]
[399899354,1766832698545,-132.47409627,0.00012648,2]
[399899355,1766832701624,-105.55493749,0.00012648,2]
[399899356,1766832701652,-260.602803,0.00012648,2]
[399899357,1766832704286,-161.4172017,0.00012648,2]
[399899358,1766832707037,-77.9799953,0.00012648,2]
[399899359,1766832707064,-268.41140926,0.00012648,2]
[399899360,1766832709993,-175.80866199,0.00012549,2]
[399899361,1766832712751,-216.92333801,0.00012549,2]
[399899362,1766832712780,-163.98685159,0.00012648,2]
[399899363,1766832716764,-67.60173915,0.00012648,2]
[399899364,1766832716790,-251.55371175,0.00012648,2]
[399899365,1766832719956,-201.98633521,0.00012648,2]
[399899367,1766832743427,-195.53271374,0.00012648,2]
[399899368,1766832743451,-117.46310284,0.00012648,2]
[399899369,1766832744891,-161.99344713,0.00012648,2]
[399899370,1766832746362,-254.28414398,0.00012648,2]
[399899396,1766833507701,668.46,0.00026522,120]
[399899397,1766833508022,668.46,0.00029174,120]
[399899406,1766833691161,278.0,0.00030136,120]
[399899436,1766833831556,-698.15516949,0.00015602,2]
[399899437,1766833831568,-124.84483051,0.00015602,2]
[399899438,1766833831579,-300.0,0.00015603,2]
[399899439,1766833831589,-38.07132874,0.00015603,2]
[399899440,1766833831610,-261.92867126,0.00015603,2]
[399899441,1766833831619,-662.10841805,0.00015603,2]
[399899442,1766833831631,-537.89158195,0.00015603,2]
[399899443,1766833831641,-250.0,0.00015603,2]
[399899444,1766833831652,-1214.65938943,0.00015604,2]
[399899445,1766833831662,-500.0,0.00015604,2]
[399899446,1766833831672,-500.0,0.00015604,2]
[399899447,1766833831682,-500.0,0.00015604,2]
[399899448,1766833831693,-151.0,0.00016566,2]
[399899449,1766833831703,-151.0,0.00016566,2]
[399899450,1766833831713,-151.0,0.0001659,2]
[399899451,1766833831723,-151.0,0.0001659,2]
[399899452,1766833831733,-2000.0,0.00017,2]
[399899453,1766833831742,-250.0,0.00017053,2]
[399899454,1766833831752,-300.0,0.00017053,2]
[399899455,1766833831762,-1200.0,0.00017152,2]
[399899456,1766833831773,-193.0,0.00017163,2]
[399899457,1766833831783,-150.0,0.00017163,3]
[399899458,1766833831793,-288.6443353,0.00017163,3]
[399899459,1766833831803,-257.49971045,0.00017163,2]
[399899461,1766833831813,-200.86020588,0.00017163,2]
[399899463,1766833831822,-250.0,0.00017163,2]
[399899466,1766833831832,-569.3,0.00019391,2]
[399899468,1766833831841,-194.0,0.00020575,2]
[399899470,1766833831851,-200.0,0.00020658,2]
[399899472,1766833831861,-2000.0,0.000207,2]
[399899474,1766833831871,-978.62492937,0.00020749,2]
[399899477,1766833831887,-521.37507063,0.00020749,2]
[399899479,1766833831896,-66.68015854,0.00020938,2]
[399899505,1766833837680,-133.31984146,0.00020938,2]
[399899506,1766833837691,-500.0,0.00020938,2]
[399899507,1766833837701,-200.0,0.00020938,2]
[399899508,1766833837711,-185.05473025,0.00020938,2]
[399899509,1766833837720,-343.03,0.00021003,2]
[399899510,1766833837730,-663.48804883,0.00021027,2]
[399899511,1766833837742,-267.97702398,0.00021027,2]
[399899512,1766833837754,-1811.16,0.00021027,2]
[399899513,1766833837787,-3234.24970126,0.00021027,2]
[399899556,1766833839824,-151.0,0.00018446,2]
[399899557,1766833840034,-151.0,0.00018446,2]
[399899558,1766833840050,-173.70768933,0.00021027,2]
[399899589,1766833843444,-3439.16975584,0.00021027,2]
[399899590,1766833843456,-534.74828065,0.00021027,2]
[399899591,1766833843523,-256.97950011,0.00021027,2]
[399899592,1766833843532,-569.3,0.00021174,2]
[399899593,1766833843543,-668.46,0.00021218,2]
[399899594,1766833843553,-150.0,0.00021263,2]
[399899595,1766833843563,-150.0,0.00021756,2]
[399899596,1766833843572,-5828.01,0.00021757,2]
[399899597,1766833843582,-9999.99,0.00021757,2]
[399899598,1766833843592,-999.99,0.00021757,2]
[399899599,1766833843602,-3003.78,0.00021918,2]
[399899600,1766833843612,-593.512,0.00022033,2]
[399899601,1766833843622,-6537.0,0.00022033,2]
[399899602,1766833843632,-500.0,0.00022438,2]
[399899603,1766833843642,-1852.42,0.00022445,2]
[399899604,1766833843652,-150.0,0.00022662,2]
[399899605,1766833843662,-150.0,0.00022662,2]
[399899606,1766833843672,-167.32949041,0.00022662,2]
[399899607,1766833843681,-200.0,0.00022689,2]
[399899608,1766833843691,-166.66,0.00022729,30]
[399899609,1766833843701,-688.77,0.00022814,2]
[399899610,1766833843711,-322.6107,0.00022936,2]
[399899611,1766833843721,-500.0,0.00022936,2]
[399899612,1766833843731,-500.0,0.00022936,2]
[399899613,1766833843740,-500.0,0.00022936,2]
[399899614,1766833843750,-250.0,0.00022936,2]
[399899615,1766833843760,-500.0,0.00022936,2]
[399899616,1766833843770,-500.0,0.00022936,2]
[399899617,1766833843780,-250.0,0.00022936,2]
[399899618,1766833843791,-250.0,0.00022936,2]
[399899619,1766833843800,-500.0,0.00022936,2]
[399899620,1766833843811,-500.0,0.00022936,2]
[399899621,1766833843820,-500.0,0.00022936,2]
[399899622,1766833843831,-250.0,0.00022936,2]
[399899623,1766833843840,-500.0,0.00022936,2]
[399899624,1766833843850,-500.0,0.00022936,2]
[399899625,1766833843860,-250.0,0.00022936,2]
[399899626,1766833843869,-238.38323648,0.00022936,2]
[399899627,1766833843879,-250.0,0.00022936,2]
[399899628,1766833843889,-500.0,0.00022936,2]
[399899629,1766833843899,-500.0,0.00022936,2]
[399899630,1766833843909,-250.0,0.00022936,2]
[399899631,1766833843919,-500.0,0.00022936,2]
[399899632,1766833843929,-250.0,0.00022936,2]
[399899633,1766833843939,-250.0,0.00022936,2]
[399899634,1766833843949,-500.0,0.00022936,2]
[399899635,1766833843959,-250.0,0.00022936,2]
[399899636,1766833843968,-500.0,0.00022936,2]
[399899637,1766833843978,-250.0,0.00022936,2]
[399899638,1766833843987,-500.0,0.00022936,2]
[399899639,1766833843997,-250.0,0.00022936,2]
[399899640,1766833844007,-250.0,0.00022936,2]
[399899641,1766833844017,-250.0,0.00022936,2]
[399899642,1766833844026,-250.0,0.00022936,2]
[399899643,1766833844037,-250.0,0.00022936,2]
[399899644,1766833844050,-250.0,0.00022936,2]
[399899645,1766833844059,-250.0,0.00022936,2]
[399899646,1766833844069,-250.0,0.00022936,2]
[399899647,1766833844079,-250.0,0.00022936,2]
[399899648,1766833844088,-250.0,0.00022936,2]
[399899649,1766833844098,-250.0,0.00022936,2]
[399899650,1766833844108,-548.78,0.00022936,2]
[399899651,1766833844118,-569.3,0.00022956,2]
[399899652,1766833844127,-166.66,0.00023207,30]
[399899653,1766833844137,-548.78,0.0002321,2]
[399899654,1766833844147,-548.78,0.00023484,2]
[399899655,1766833844157,-15465.0907916,0.00023525,2]
[399899656,1766833844167,-166.66,0.00023686,30]
[399899657,1766833844177,-548.78,0.00023758,2]
[399899658,1766833844187,-668.46,0.0002387,2]
[399899659,1766833844197,-330.00236945,0.00023899,2]
[399899660,1766833844207,-161.4172017,0.00023899,2]
[399899661,1766833844216,-606.24995028,0.00023899,2]
[399899662,1766833844225,-200.97544427,0.00023899,2]
[399899663,1766833844234,-3620.36970923,0.000239,2]
[399899664,1766833844244,-4982.89580866,0.000239,2]
[399899665,1766833844253,-530.33255814,0.000239,2]
[399899666,1766833844262,-157.65642569,0.000239,2]
[399899667,1766833844271,-1067.9501984,0.000239,2]
[399899668,1766833844282,-154.11,0.0002399,2]
[399899669,1766833844291,-154.11,0.0002399,2]
[399899670,1766833844301,-339.68071893,0.00023999,2]
[399899671,1766833844310,-246.43015698,0.00023999,2]
[399899672,1766833844320,-500.0,0.00023999,2]
[399899673,1766833844329,-649.42385419,0.00023999,2]
[399899674,1766833844338,-718317.9321545,0.00024,2]
[399899684,1766833845650,-304.06693998,0.00024,2]
[399899709,1766834720485,7346.43334848,9e-05,2]
[399899713,1766834764946,334.80494252,0.00011,2]
[399899734,1766835031728,-250.0,0.000155,2]
[399899735,1766835031739,-279.0,0.000155,2]
[399899736,1766835031749,-159.72,0.00015627,2]
[399899737,1766835031762,-90.28,0.00015627,2]
[399899738,1766835031772,-250.0,0.00015781,2]
[399899739,1766835031783,-205.98772194,0.00015854,2]
[399899740,1766835031793,-37.36475613,0.00015899,2]
[399899741,1766835031806,-262.63524387,0.00015899,2]
[399899742,1766835031816,-300.0,0.00015899,2]
[399899743,1766835031828,-300.0,0.00015899,2]
[399899744,1766835031838,-1200.0,0.00015899,2]
[399899745,1766835031849,-150.0,0.00015899,2]
[399899746,1766835031859,-4142.42096031,0.000159,2]
[399899747,1766835031870,-500.0,0.000159,2]
[399899748,1766835031882,-343.24244796,0.000159,2]
[399899749,1766835031894,-77072.4405635,0.000159,2]
[399899750,1766835031906,-321.27772,0.000159,2]
[399899751,1766835031918,-630.75339574,0.000159,2]
[399899757,1766835037876,-454.57076412,0.00015854,2]
[399899758,1766835037887,-310.31599768,0.00015899,2]
[399899759,1766835037897,-500.0,0.00015899,2]
[399899760,1766835037907,-531.40891205,0.00015899,2]
[399899761,1766835037916,-218.41785933,0.00015899,2]
[399899762,1766835037926,-500.0,0.00015899,2]
[399899763,1766835037936,-500.0,0.00015899,2]
[399899764,1766835037946,-500.0,0.00015899,2]
[399899765,1766835037956,-500.0,0.00015899,2]
[399899766,1766835037966,-500.0,0.00015899,2]
[399899767,1766835037976,-500.0,0.00015899,2]
[399899768,1766835037986,-500.0,0.00015899,2]
[399899769,1766835037996,-500.0,0.00015899,2]
[399899770,1766835038007,-500.0,0.00015899,2]
[399899771,1766835038016,-500.0,0.00015899,2]
[399899772,1766835038026,-500.0,0.00015899,2]
[399899773,1766835038036,-500.0,0.00015899,2]
[399899774,1766835038046,-500.0,0.00015899,2]
[399899775,1766835038056,-500.0,0.00015899,2]
[399899776,1766835038066,-500.0,0.00015899,2]
[399899777,1766835038076,-223.25305323,0.00015899,2]
[399899778,1766835038086,-500.0,0.00015899,2]
[399899785,1766835038364,-500.0,0.00015899,2]
[399899786,1766835038375,-500.0,0.00015899,2]
[399899787,1766835038386,-500.0,0.00015899,2]
[399899788,1766835038396,-500.0,0.00015899,2]
[399899789,1766835038407,-603935.26012009,0.000159,2]
[399899790,1766835038419,-377.0,0.000159,2]
[399899791,1766835038431,-1990.77899748,0.000159,2]
[399899792,1766835038443,-1141.97294983,0.000159,2]
[399899793,1766835039812,-157.65642569,0.00015854,2]
[399899794,1766835039822,-6269.3421341,0.000159,2]
[399899795,1766835039834,-458.87313864,0.000159,2]
[399899796,1766835039846,-258.70536178,0.000159,2]
[399899797,1766835039865,-4694.78144985,0.000159,2]
[399899798,1766835040025,-297863.15076072,0.000159,2]
[399899799,1766835040035,-1200.0,0.00015954,2]
[399899800,1766835040045,-2000.0,0.00015955,2]
[399899801,1766835040056,-2000.0,0.00015955,2]
[399899802,1766835040065,-1618.676,0.00015955,2]
[399899803,1766835040075,-22114.66624448,0.00016,2]
[399899804,1766835040085,-250.0,0.00016,2]
[399899805,1766835040096,-78931.84259171,0.00016,4]
[399899806,1766835040106,-250.0,0.000163,2]
[399899807,1766835040116,-4484.60622774,0.000169,2]
[399899808,1766835040125,-889.9584987,0.000169,2]
[399899809,1766835040135,-1319698.02136258,0.00017,2]
[399899810,1766835040144,-250.0,0.00017,2]
[399899811,1766835040155,-250.0,0.0001705,2]
[399899812,1766835040164,-300.0,0.0001749,2]
[399899813,1766835040174,-250.0,0.000175,2]
[399899814,1766835040184,-250.0,0.00018,3]
[399899815,1766835040194,-250.0,0.000185,3]
[399899816,1766835040204,-1000.0,0.00018575,2]
[399899817,1766835040214,-4484.60622772,0.00018694,2]
[399899818,1766835040228,-2875.51551091,0.000187,2]
[399899819,1766835040238,-154.12,0.000188,2]
[399899821,1766835040248,-427.0,0.00019578,2]
[399899823,1766835040259,-500.0,0.0002,4]
[399899826,1766835040268,-1000.0,0.00020208,7]
[399899827,1766835040278,-4484.60622772,0.00020489,2]
[399899829,1766835040288,-1000.0,0.00020897,2]
[399899831,1766835040298,-500.0,0.00021,5]
[399899833,1766835040307,-889.95849866,0.000213,2]
[399899835,1766835040317,-427.0,0.00021344,2]
[399899837,1766835040326,-1725.0,0.000214,2]
[399899839,1766835040336,-152.96,0.000215,2]
[399899840,1766835040345,-1513.2121039,0.00021795,2]
[399899842,1766835040358,-500.0,0.00021918,2]
[399899844,1766835040368,-200.0,0.00021965,2]
[399899846,1766835040377,-4484.60622772,0.00022283,2]
[399899848,1766835040387,-281.5,0.00022612,30]
[399899850,1766835040396,-263.8,0.00022615,2]
[399899852,1766835040407,-500.0,0.00022686,2]
[399899854,1766835040416,-200.0,0.00022686,2]
[399899856,1766835040426,-151.0,0.00022686,2]
[399899858,1766835040435,-151.0,0.00022686,2]
[399899860,1766835040445,-207.4,0.00022686,2]
[399899862,1766835040454,-151.0,0.00022686,2]
[399899864,1766835040465,-500.0,0.00022686,2]
[399899866,1766835040474,-151.0,0.00022686,2]
[399899868,1766835040484,-500.0,0.00022686,2]
[399899870,1766835040493,-151.0,0.00022686,2]
[399899872,1766835040503,-500.0,0.00022686,2]
[399899874,1766835040513,-151.0,0.00022686,2]
[399899876,1766835040523,-500.0,0.00022686,2]
[399899877,1766835040532,-151.0,0.00022686,2]
[399899880,1766835040542,-500.0,0.00022686,2]
[399899881,1766835040552,-151.0,0.00022686,2]
[399899883,1766835040561,-500.0,0.00022686,2]
[399899885,1766835040571,-151.0,0.00022686,2]
[399899887,1766835040580,-500.0,0.00022686,2]
[399899889,1766835040590,-151.0,0.00022686,2]
[399899891,1766835040600,-500.0,0.00022686,2]
[399899893,1766835040610,-151.0,0.00022686,2]
[399899895,1766835040619,-500.0,0.00022686,2]
[399899897,1766835040628,-151.0,0.00022686,2]
[399899899,1766835040638,-500.0,0.00022686,2]
[399899901,1766835040647,-500.0,0.00022686,2]
[399899904,1766835040658,-500.0,0.00022686,2]
[399899906,1766835040668,-500.0,0.00022686,2]
[399899908,1766835040678,-500.0,0.00022686,2]
[399899909,1766835040687,-500.0,0.00022686,2]
[399899911,1766835040696,-500.0,0.00022686,2]
[399899913,1766835040706,-500.0,0.00022686,2]
[399899915,1766835040715,-500.0,0.00022686,2]
[399899917,1766835040725,-500.0,0.00022686,2]
[399899919,1766835040735,-500.0,0.00022686,2]
[399899920,1766835040744,-500.0,0.00022686,2]
[399899921,1766835040754,-500.0,0.00022686,2]
[399899922,1766835040763,-500.0,0.00022686,2]
[399899923,1766835040773,-500.0,0.00022686,2]
[399899924,1766835040783,-200.0,0.00022686,2]
[399899925,1766835040793,-16906.98657398,0.000227,2]
[399899926,1766835040803,-2222.141,0.00022733,2]
[399899927,1766835040813,-612.0,0.00022733,2]
[399899928,1766835040823,-1327.0,0.00022733,2]
[399899929,1766835040832,-1248.396,0.00022733,2]
[399899930,1766835040842,-6516.0,0.00022733,2]
[399899931,1766835040852,-5000.0,0.00022785,2]
[399899932,1766835040861,-2336.49239775,0.00022936,2]
[399899933,1766835040871,-688.41381524,0.00022936,2]
[399899934,1766835040881,-790.74255944,0.00022936,2]
[399899935,1766835040891,-4264.19913124,0.00022936,2]
[399899936,1766835040901,-427.0,0.00023109,2]
[399899937,1766835040911,-1000.0,0.00023219,2]
[399899938,1766835040922,-2201.7067352,0.00023277,2]
[399899939,1766835040931,-168.97,0.00023522,2]
[399899940,1766835040941,-150.0,0.00023525,2]
[399899941,1766835040950,-3240.0,0.00023574,2]
[399899942,1766835040960,-201.12732166,0.0002359,2]
[399899943,1766835040970,-69595.697,0.00023604,2]
[399899944,1766835040981,-250.0,0.00023609,2]
[399899945,1766835040991,-553.64373807,0.00023609,2]
[399899946,1766835041000,-250.0,0.00023609,2]
[399899947,1766835041010,-250.0,0.00023609,2]
[399899948,1766835041019,-250.0,0.00023609,2]
[399899949,1766835041029,-250.0,0.00023609,2]
[399899950,1766835041039,-394.46532357,0.00023609,2]
[399899951,1766835041049,-500.0,0.00023609,2]
[399899952,1766835041059,-254.66396381,0.00023609,2]
[399899953,1766835041070,-500.0,0.00023609,2]
[399899954,1766835041080,-250.0,0.00023609,2]
[399899955,1766835041089,-250.0,0.00023609,2]
[399899956,1766835041099,-500.0,0.00023609,2]
[399899957,1766835041109,-500.0,0.00023609,2]
[399899958,1766835041119,-500.0,0.00023609,2]
[399899959,1766835041129,-500.0,0.00023609,2]
[399899960,1766835041139,-500.0,0.00023609,2]
[399899961,1766835041148,-201.93286098,0.00023609,2]
[399899962,1766835041158,-500.0,0.00023609,2]
[399899963,1766835041168,-500.0,0.00023609,2]
[399899964,1766835041177,-500.0,0.00023609,2]
[399899965,1766835041187,-500.0,0.00023609,2]
[399899966,1766835041196,-500.0,0.00023609,2]
[399899967,1766835041206,-500.0,0.00023609,2]
[399899968,1766835041215,-500.0,0.00023609,2]
[399899969,1766835041224,-500.0,0.00023609,2]
[399899970,1766835041234,-500.0,0.00023609,2]
[399899971,1766835041244,-1000.0,0.0002366,2]
[399899972,1766835041253,-58329.2777173,0.00023703,2]
[399899973,1766835041263,-1002.8809457,0.00023799,2]
[399899974,1766835041273,-373.12730585,0.00023899,2]
[399899975,1766835041283,-608.93431217,0.000239,2]
[399899976,1766835041293,-410.0744158,0.000239,2]
[399899977,1766835041303,-3315.7613261,0.00023975,2]
[399899978,1766835041313,-182.94,0.00023985,2]
[399899979,1766835041323,-154.12,0.0002399,2]
[399899980,1766835041333,-300.0,0.00023999,2]
[399899981,1766835041342,-666.0,0.00023999,2]
[399899982,1766835041355,-1423170.43601146,0.00024,2]
[399899983,1766835041366,-76316.73402312,0.00024,2]
[399899984,1766835041376,-151.0,0.00024,2]
[399899985,1766835041386,-151.0,0.00024,2]
[399899986,1766835041397,-151.0,0.00024,2]
[399899987,1766835041407,-333.15698,0.00024,2]
[399899988,1766835041416,-333.15698,0.00024,2]
[399899989,1766835041427,-333.15698,0.00024,2]
[399899990,1766835041437,-333.15698,0.00024,2]
[399899991,1766835041447,-151.0,0.00024,2]
[399899992,1766835041458,-4484.60622772,0.00024078,2]
[399899993,1766835041467,-999.0,0.00024095,3]
[399899994,1766835041478,-166.66,0.00024164,30]
[399899995,1766835041488,-182.94,0.00024259,2]
[399899996,1766835041498,-182.94198131,0.00024533,2]
[399899997,1766835041508,-1000.0,0.00024547,2]
[399899998,1766835041518,-166.66,0.00024643,30]
[399899999,1766835041528,-1000.0,0.00024658,2]
[399900000,1766835041537,-151.0,0.00024658,2]
[399900001,1766835041548,-5949.86,0.000247,7]
[399900002,1766835041558,-151.0,0.000247,2]
[399900003,1766835041568,-151.0,0.000247,2]
[399900004,1766835041578,-462.93466945,0.000247,2]
[399900005,1766835041588,-154.12,0.0002479,2]
[399900006,1766835041598,-300.0,0.00024799,10]
[399900007,1766835041607,-1257.0,0.000248,2]
[399900008,1766835041617,-152.0,0.000248,2]
[399900009,1766835041627,-1257.0,0.000248,2]
[399900010,1766835041636,-152.0,0.000248,2]
[399900011,1766835041646,-152.0,0.000248,2]
[399900012,1766835041655,-152.0,0.000248,2]
[399900013,1766835041664,-152.0,0.000248,2]
[399900014,1766835041674,-1257.0,0.000248,2]
[399900015,1766835041685,-152.0,0.000248,2]
[399900016,1766835041694,-152.0,0.000248,2]
[399900017,1766835041705,-1257.0,0.000248,2]
[399900018,1766835041714,-152.0,0.000248,2]
[399900019,1766835041724,-1257.0,0.000248,2]
[399900020,1766835041733,-152.0,0.000248,2]
[399900021,1766835041743,-152.0,0.000248,2]
[399900022,1766835041752,-152.0,0.000248,2]
[399900023,1766835041762,-1257.0,0.000248,2]
[399900024,1766835041772,-152.0,0.000248,2]
[399900025,1766835041782,-152.0,0.000248,2]
[399900026,1766835041791,-152.0,0.000248,2]
[399900027,1766835041801,-1257.0,0.000248,2]
[399900028,1766835041810,-152.0,0.000248,2]
[399900029,1766835041819,-1257.0,0.000248,2]
[399900030,1766835041829,-152.0,0.000248,2]
[399900031,1766835041838,-152.0,0.000248,2]
[399900032,1766835041848,-1257.0,0.000248,2]
[399900033,1766835041858,-152.0,0.000248,2]
[399900034,1766835041868,-152.0,0.000248,2]
[399900035,1766835041878,-1257.0,0.000248,2]
[399900036,1766835041888,-152.0,0.000248,2]
[399900037,1766835041898,-152.0,0.000248,2]
[399900038,1766835041908,-1257.0,0.000248,2]
[399900039,1766835041918,-152.0,0.000248,2]
[399900040,1766835041927,-152.0,0.000248,2]
[399900041,1766835041936,-1257.0,0.000248,2]
[399900042,1766835041946,-152.0,0.000248,2]
[399900043,1766835041956,-152.0,0.000248,2]
[399900044,1766835041965,-152.0,0.000248,2]
[399900045,1766835041975,-1257.0,0.000248,2]
[399900046,1766835041985,-152.0,0.000248,2]
[399900047,1766835041994,-152.0,0.000248,2]
[399900048,1766835042004,-1257.0,0.000248,2]
[399900049,1766835042013,-152.0,0.000248,2]
[399900050,1766835042023,-152.0,0.000248,2]
[399900051,1766835042032,-1257.0,0.000248,2]
[399900052,1766835042042,-152.0,0.000248,2]
[399900053,1766835042051,-152.0,0.000248,2]
[399900054,1766835042061,-1257.0,0.000248,2]
[399900055,1766835042071,-152.0,0.000248,2]
[399900056,1766835042081,-152.0,0.000248,2]
[399900057,1766835042092,-1257.0,0.000248,2]
[399900058,1766835042101,-152.0,0.000248,2]
[399900059,1766835042111,-152.0,0.000248,2]
[399900060,1766835042120,-1257.0,0.000248,2]
[399900061,1766835042129,-152.0,0.000248,2]
[399900062,1766835042139,-152.0,0.000248,2]
[399900063,1766835042149,-1257.0,0.000248,2]
[399900064,1766835042159,-152.0,0.000248,2]
[399900065,1766835042168,-152.0,0.000248,2]
[399900066,1766835042177,-1257.0,0.000248,2]
[399900067,1766835042187,-152.0,0.000248,2]
[399900068,1766835042197,-152.0,0.000248,2]
[399900069,1766835042207,-1257.0,0.000248,2]
[399900070,1766835042216,-152.0,0.000248,2]
[399900071,1766835042225,-152.0,0.000248,2]
[399900072,1766835042235,-152.0,0.000248,2]
[399900073,1766835042244,-1257.0,0.000248,2]
[399900074,1766835042253,-152.0,0.000248,2]
[399900075,1766835042263,-1257.0,0.000248,2]
[399900076,1766835042273,-152.0,0.000248,2]
[399900077,1766835042283,-152.0,0.000248,2]
[399900078,1766835042292,-1257.0,0.000248,2]
[399900079,1766835042302,-152.0,0.000248,2]
[399900080,1766835042311,-152.0,0.000248,2]
[399900081,1766835042322,-1257.0,0.000248,2]
[399900082,1766835042331,-152.0,0.000248,2]
[399900083,1766835042341,-1257.0,0.000248,2]
[399900084,1766835042353,-152.0,0.000248,2]
[399900085,1766835042362,-152.0,0.000248,2]
[399900086,1766835042372,-1257.0,0.000248,2]
[399900087,1766835042381,-152.0,0.000248,2]
[399900088,1766835042391,-1102.52601387,0.000248,2]
[399900089,1766835042402,-152.0,0.000248,2]
[399900090,1766835042411,-152.0,0.000248,2]
[399900091,1766835042421,-152.0,0.000248,2]
[399900092,1766835042431,-152.0,0.000248,2]
[399900093,1766835042441,-152.0,0.000248,2]
[399900094,1766835042451,-152.0,0.000248,2]
[399900095,1766835042461,-152.0,0.000248,2]
[399900096,1766835042471,-152.0,0.000248,2]
[399900097,1766835042481,-206.21647338,0.000248,2]
[399900098,1766835042491,-152.0,0.000248,2]
[399900099,1766835042502,-152.0,0.000248,2]
[399900100,1766835042511,-152.0,0.000248,2]
[399900101,1766835042521,-151.0,0.000248,2]
[399900102,1766835042531,-151.0,0.000248,2]
[399900103,1766835042542,-159.64913359,0.000248,2]
[399900104,1766835042552,-151.0,0.000248,7]
[399900105,1766835042561,-151.0,0.000248,7]
[399900106,1766835042571,-266.125656,0.000248,7]
[399900107,1766835042581,-151.000007,0.000248,2]
[399900108,1766835042591,-193.648919,0.000248,7]
[399900109,1766835042602,-151.0,0.000248,7]
[399900110,1766835042611,-556806.957949,0.000248,3]
[399900111,1766835042621,-151.0,0.000248,7]